bitfinex-derivatives/quotes_ETHF0:USTF0_20210110
["timestamp","ask_amount","ask_price","bid_price","bid_amount"]
[1610289609467,1.84456938,1301.0,1300.8,30.0]
[1610289609666,1.84456938,1301.0,1300.8,40.0]
[1610289609867,1.8447625,1301.1,1300.9,10.0]
[1610289610066,1.8447625,1301.1,1301.0,34.00959]
[1610289610267,1.8452877,1301.2,1301.0,44.00959]
[1610289610468,1.8452877,1301.2,1301.1,10.0]
[1610289611769,1.8459632,1301.3,1301.1,40.0]
[1610289612068,1.8459632,1301.3,1301.2,14.00959]
[1610289612468,1.8459632,1301.3,1301.2,45.70639]
[1610289612668,1.84731732,1301.4,1301.2,45.70639]
[1610289613070,1.84844524,1301.6,1301.3,10.0]
[1610289613270,1.84999683,1301.9,1301.4,30.0]
[1610289613671,1.48002626,1301.9,1301.5,10.0]
[1610289613872,1.48002626,1301.9,1301.6,10.0]
[1610289614073,1.48016657,1302.0,1301.8,4.00959]
[1610289614474,1.48016657,1302.0,1301.8,5.71279]
[1610289614675,3.3296713,1302.1,1301.8,5.71279]
[1610289614871,3.3296713,1302.1,1301.9,10.0]
[1610289615072,1.47946309,1302.1,1302.0,10.0]
[1610289615273,3.3286399,1302.1,1302.0,10.0]
[1610289615674,3.23975092,1302.1,1301.9,10.0]
[1610289616076,3.23818801,1302.0,1301.9,4.00959]
[1610289616675,3.23818801,1302.0,1301.9,14.00959]
[1610289617376,3.23818801,1302.0,1301.9,10.0]
[1610289617776,4.61185536,1302.0,1301.9,10.0]
[1610289617975,7.08796523,1302.0,1301.9,10.0]
[1610289618175,11.09755523,1302.0,1301.9,10.0]
[1610289618879,7.08796523,1302.0,1301.9,10.0]
[1610289619378,3.22383946,1302.0,1301.9,10.0]
[1610289619776,3.22324895,1302.1,1301.9,10.0]
[1610289620176,1.8388404,1302.0,1301.8,1.7032]
[1610289620376,1.47117731,1301.9,1301.5,31.8761]
[1610289620575,1.47117731,1301.9,1301.6,10.0]
[1610289620776,1.47130146,1302.0,1301.6,10.0]
[1610289621175,1.47130146,1302.0,1301.7,10.0]
[1610289621576,1.47130146,1302.0,1301.6,10.0]
[1610289621876,1.47130146,1302.0,1301.8,10.0]
[1610289622078,1.47130146,1302.0,1301.9,4.00959]
[1610289622677,1.83850769,1302.0,1301.9,10.0]
[1610289623077,4.59808822,1302.1,1301.9,10.0]
[1610289623477,8.90303042,1302.0,1301.8,2.2954]
[1610289623879,8.26291631,1302.0,1301.9,10.0]
[1610289624078,12.27250631,1302.0,1301.9,10.0]
[1610289624479,16.57295988,1302.0,1301.9,10.0]
[1610289624879,6.47853299,1302.0,1301.9,10.0]
[1610289626585,16.55141527,1302.0,1301.9,10.0]
[1610289628586,6.47853299,1302.0,1301.9,10.0]
[1610289629388,18.35964976,1302.0,1301.9,10.0]
[1610289630488,6.47853299,1302.0,1301.9,10.0]
[1610289631290,20.17206901,1302.0,1301.9,10.0]
[1610289631689,6.47853299,1302.0,1301.9,10.0]
[1610289632090,15.89714571,1302.0,1301.9,10.0]
[1610289632290,31.41026142,1302.0,1301.9,10.0]
[1610289632692,15.89714571,1302.0,1301.9,10.0]
[1610289633492,6.47853299,1302.0,1301.9,10.0]
[1610289633695,20.16531382,1302.0,1301.9,10.0]
[1610289633993,6.47853299,1302.0,1301.9,10.0]
[1610289634793,16.54567731,1302.0,1301.9,10.0]
[1610289635098,6.47853299,1302.0,1301.9,10.0]
[1610289635696,14.71815174,1302.0,1301.9,10.0]
[1610289636296,14.07253603,1302.0,1301.9,10.0]
[1610289636498,5.81505445,1302.0,1301.9,10.0]
[1610289636897,7.84325445,1302.0,1301.9,10.0]
[1610289637700,21.53833057,1302.0,1301.9,10.0]
[1610289637898,19.73286612,1302.0,1301.9,10.0]
[1610289638198,21.55475478,1302.0,1301.9,10.0]
[1610289638597,7.85967866,1302.0,1301.9,10.0]
[1610289639899,7.85967866,1302.0,1299.7,1.5297]
[1610289639900,25.18859614,1302.0,1299.7,1.5297]
[1610289640103,11.26467866,1302.0,1299.7,1.5297]
[1610289640302,7.25508866,1302.0,1301.9,10.0]
[1610289640501,11.4508737,1302.0,1299.7,1.5297]
[1610289640702,16.69650654,1302.0,1299.7,1.5297]
[1610289640901,5.8993,1301.9,1299.7,1.5297]
[1610289641102,1.45733521,1299.8,1299.7,1.5297]
[1610289641502,1.82166901,1299.9,1299.7,11.5297]
[1610289641701,1.82166901,1299.9,1299.7,10.0]
[1610289641902,1.82272416,1299.8,1299.4,2.2848]
[1610289642102,1.45873409,1299.6,1299.5,10.0]
[1610289642302,5.46832409,1299.6,1299.5,10.0]
[1610289642502,5.46832409,1299.6,1299.4,2.2848]
[1610289642702,5.46832409,1299.6,1299.5,10.0]
[1610289642903,5.67904371,1299.6,1299.5,10.0]
[1610289643402,4.00959,1299.6,1299.5,10.0]
[1610289643703,6.77183954,1299.6,1299.5,10.0]
[1610289644103,5.10286839,1299.6,1299.5,10.0]
[1610289644504,6.77002978,1299.6,1299.5,10.0]
[1610289645105,7.13240923,1299.6,1299.5,10.0]
[1610289645509,8.95029247,1299.6,1299.5,10.0]
[1610289645908,5.76391992,1299.6,1299.5,10.0]
[1610289646108,16.20351034,1299.6,1299.5,10.0]
[1610289646510,18.01334686,1299.6,1299.5,10.0]
[1610289646909,8.02821992,1299.6,1299.5,10.0]
[1610289647913,19.82426144,1299.6,1299.5,10.0]
[1610289648110,28.72336144,1299.6,1299.5,10.0]
[1610289649709,16.92731992,1299.6,1299.5,10.0]
[1610289650710,26.91461772,1299.6,1299.5,10.0]
[1610289651009,23.28998181,1299.6,1299.5,10.0]
[1610289651410,26.71730374,1299.6,1299.5,10.0]
[1610289651810,23.28998181,1299.6,1299.5,10.0]
[1610289652810,16.92731992,1299.6,1299.5,10.0]
[1610289653010,26.90761171,1299.6,1299.5,10.0]
[1610289653709,16.92731992,1299.6,1299.5,10.0]
[1610289654110,26.9066479,1299.6,1299.5,10.0]
[1610289655412,16.92731992,1299.6,1299.5,10.0]
[1610289655713,20.37043263,1299.6,1299.5,10.0]
[1610289656113,16.92731992,1299.6,1299.5,10.0]
[1610289656513,20.3693795,1299.6,1299.5,10.0]
[1610289656712,16.92731992,1299.6,1299.5,10.0]
[1610289657314,8.02821992,1299.6,1299.5,10.0]
[1610289657715,18.00271624,1299.6,1299.5,10.0]
[1610289658115,6.27389,1299.6,1299.5,10.0]
[1610289658515,8.12078895,1299.6,1299.5,10.0]
[1610289660118,19.89777101,1299.6,1299.5,10.0]
[1610289660320,8.12078895,1299.6,1299.5,10.0]
[1610289661621,19.89506652,1299.6,1299.5,10.0]
[1610289662023,8.12078895,1299.6,1299.5,10.0]
[1610289663625,18.10597176,1299.6,1299.5,10.0]
[1610289663925,16.25907281,1299.6,1299.5,10.0]
[1610289664226,18.12572843,1299.6,1299.5,10.0]
[1610289665028,8.14054562,1299.6,1299.5,10.0]
[1610289665428,16.33724002,1299.6,1299.5,10.0]
[1610289666130,14.52072181,1299.6,1299.5,10.0]
[1610289666930,8.14054562,1299.6,1299.5,10.0]
[1610289667832,18.16128084,1299.6,1299.5,10.0]
[1610289668231,8.14054562,1299.6,1299.5,10.0]
[1610289668430,29.39897042,1299.6,1299.5,10.0]
[1610289668832,17.57315093,1299.6,1299.5,10.0]
[1610289669331,20.97797501,1299.6,1299.5,10.0]
[1610289669733,29.39267183,1299.6,1299.5,10.0]
[1610289670533,17.57315093,1299.6,1299.5,10.0]
[1610289671535,31.1907887,1299.6,1299.5,10.0]
[1610289672134,17.57315093,1299.6,1299.5,10.0]
[1610289673236,29.38529846,1299.6,1299.5,10.0]
[1610289673637,17.57315093,1299.6,1299.5,10.0]
[1610289675038,23.94190663,1299.6,1299.5,10.0]
[1610289675239,14.50930132,1299.6,1299.5,10.0]
[1610289676240,8.14054562,1299.6,1299.5,10.0]
[1610289677239,12.69341846,1299.6,1299.5,10.0]
[1610289677441,14.51039611,1299.6,1299.5,10.0]
[1610289678142,12.68972444,1299.6,1299.5,10.0]
[1610289679244,8.14054562,1299.6,1299.5,10.0]
[1610289679545,14.50595098,1299.6,1299.5,10.0]
[1610289680347,8.14054562,1299.6,1299.5,10.0]
[1610289680944,16.3216221,1299.6,1299.5,10.0]
[1610289681349,16.27644404,1299.6,1299.5,10.0]
[1610289681648,8.10095271,1299.6,1299.5,10.0]
[1610289682650,16.28617641,1299.6,1299.5,10.0]
[1610289683051,14.4591137,1299.6,1299.5,10.0]
[1610289683251,16.28454273,1299.6,1299.5,10.0]
[1610289683652,18.09382121,1299.6,1299.5,10.0]
[1610289687755,8.09931903,1299.6,1299.5,10.0]
[1610289688456,18.08825599,1299.6,1299.5,10.0]
[1610289689061,8.09931903,1299.6,1299.5,10.0]
[1610289689260,18.08931396,1299.6,1299.5,10.0]
[1610289689659,8.09931903,1299.6,1299.5,10.0]
[1610289690059,18.08856561,1299.6,1299.5,10.0]
[1610289690459,6.27389,1299.6,1299.5,10.0]
[1610289690659,8.13621648,1299.6,1299.5,10.0]
[1610289693861,18.14848242,1299.6,1299.5,10.0]
[1610289694364,8.13621648,1299.6,1299.5,10.0]
[1610289694762,16.34319163,1299.6,1299.5,10.0]
[1610289695468,8.13621648,1299.6,1299.5,10.0]
[1610289695764,14.53199583,1299.6,1299.5,10.0]
[1610289696165,8.13621648,1299.6,1299.5,10.0]
[1610289696564,12.70992041,1299.6,1299.5,10.0]
[1610289696764,5.87191648,1299.6,1299.5,10.0]
[1610289697164,9.07627573,1299.6,1299.5,10.0]
[1610289698265,7.70044231,1299.6,1299.5,10.0]
[1610289698465,5.87191648,1299.6,1299.5,10.0]
[1610289698865,7.69900265,1299.6,1299.5,10.0]
[1610289699166,9.07129959,1299.6,1299.5,10.0]
[1610289699567,10.43838461,1299.6,1299.5,10.0]
[1610289699766,12.2573167,1299.6,1299.5,10.0]
[1610289700167,14.07457833,1299.6,1299.5,10.0]
[1610289701867,5.87191648,1299.6,1299.5,10.0]
[1610289702267,15.87540004,1299.6,1299.5,10.0]
[1610289702866,5.87191648,1299.6,1299.5,10.0]
[1610289703367,7.42891648,1299.6,1299.5,10.0]
[1610289703768,5.87191648,1299.6,1299.5,10.0]
[1610289704769,7.41951648,1299.6,1299.5,10.0]
[1610289704969,5.87191648,1299.6,1299.5,10.0]
[1610289705368,19.48196525,1299.6,1299.5,10.0]
[1610289706468,5.87191648,1299.6,1299.5,10.0]
[1610289707272,5.87191648,1299.6,1297.3,2.0624]
[1610289707471,9.27691648,1299.6,1297.7,10.0]
[1610289707669,5.4977,1299.5,1297.7,10.0]
[1610289707873,1.3124024,1297.8,1297.4,10.0]
[1610289708072,1.44992192,1297.9,1297.3,2.0624]
[1610289708272,1.44992192,1297.9,1297.7,10.0]
[1610289708474,5.46019461,1297.8,1297.5,10.0]
[1610289708674,5.46019461,1297.8,1297.3,2.0624]
[1610289708877,7.38256066,1297.8,1297.6,10.0]
[1610289709076,1.92337914,1297.7,1297.6,10.0]
[1610289709275,1.92337914,1297.7,1297.4,10.0]
[1610289709479,3.73568155,1297.7,1297.4,10.0]
[1610289709679,3.73568155,1297.7,1297.5,10.0]
[1610289709878,1.8118586,1297.6,1297.0,1.9927]
[1610289710275,1.08669467,1297.4,1297.1,10.0]
[1610289710481,1.44892623,1297.5,1297.0,1.9927]
[1610289710482,4.00959,1297.2,1297.0,1.9927]
[1610289710878,4.00959,1297.2,1297.1,10.0]
[1610289712882,5.53879,1297.2,1297.1,10.0]
[1610289713283,4.00959,1297.2,1297.1,10.0]
[1610289714281,5.56769,1297.2,1297.1,10.0]
[1610289714482,4.00959,1297.2,1297.1,10.0]
[1610289717584,1.08764487,1297.5,1297.1,10.0]
[1610289717983,1.08814933,1297.6,1297.2,10.0]
[1610289718183,1.08814933,1297.6,1297.1,10.0]
[1610289718584,4.00959,1297.2,1297.0,1.9927]
[1610289719084,4.00959,1297.2,1297.1,10.0]
[1610289719286,1.08814933,1297.6,1297.1,10.0]
[1610289719485,1.08814933,1297.6,1297.1,1.7955]
[1610289719885,1.08814933,1297.6,1297.1,11.7955]
[1610289720086,1.08792381,1297.5,1297.1,11.7955]
[1610289720287,3.15529744,1297.5,1297.2,10.0]
[1610289720485,4.00959,1297.3,1297.2,10.0]
[1610289721486,4.00959,1297.3,1297.1,1.7955]
[1610289721885,4.00959,1297.3,1297.2,10.0]
[1610289722888,1.08852352,1297.4,1297.2,10.0]
[1610289723089,1.09005961,1297.6,1297.2,10.0]
[1610289723287,1.09005961,1297.6,1297.3,10.0]
[1610289723486,1.45341281,1297.7,1297.3,10.0]
[1610289723487,1.09034256,1297.7,1297.3,10.0]
[1610289723685,1.8172376,1298.0,1297.1,1.7955]
[1610289723686,1.09066361,1297.8,1297.2,10.0]
[1610289723886,1.09066361,1297.8,1297.3,10.0]
[1610289724088,1.09103279,1297.9,1297.3,10.0]
[1610289724286,1.09103279,1297.9,1297.2,10.0]
[1610289724487,1.09103279,1297.9,1297.5,4.00959]
[1610289724888,1.09103279,1297.9,1297.5,5.52369]
[1610289725287,3.17173148,1298.0,1297.6,10.0]
[1610289725489,1.09105531,1298.0,1297.6,10.0]
[1610289725688,1.09105531,1298.0,1297.7,10.0]
[1610289726290,50.0851472,1298.1,1297.6,10.0]
[1610289726490,50.0851472,1298.1,1297.5,35.52369]
[1610289726491,48.9927,1298.1,1298.0,4.00959]
[1610289726891,48.9927,1298.1,1298.0,15.79889]
[1610289727995,48.9927,1298.1,1298.0,11.7893]
[1610289728491,53.00229,1298.1,1298.0,11.7893]
[1610289728693,54.09651282,1298.1,1298.0,11.7893]
[1610289729092,58.76837126,1298.1,1298.0,11.7893]
[1610289729292,60.58989611,1298.1,1298.0,11.7893]
[1610289729592,58.76837126,1298.1,1298.0,11.7893]
[1610289729995,54.75878126,1298.1,1298.0,11.7893]
[1610289730394,51.02295407,1298.1,1298.0,11.7893]
[1610289730595,51.02295407,1298.1,1298.0,15.79889]
[1610289730794,50.08725219,1298.1,1298.0,15.79889]
[1610289731697,48.9927,1298.1,1298.0,15.79889]
[1610289732098,48.9927,1298.1,1298.0,45.79889]
[1610289732497,1.09564488,1298.3,1298.0,45.79889]
[1610289732699,1.09609538,1298.5,1298.1,10.0]
[1610289732897,1.09609538,1298.5,1298.2,30.0]
[1610289733099,1.09679235,1298.6,1298.2,30.0]
[1610289733298,1.0975841,1298.9,1298.3,12.3115]
[1610289733497,1.0975841,1298.9,1298.4,40.0]
[1610289733697,1.09848565,1299.1,1298.4,40.0]
[1610289733897,1.09848565,1299.1,1298.5,10.0]
[1610289734098,2.56318761,1299.2,1298.5,40.0]
[1610289734298,2.56318761,1299.2,1298.6,10.0]
[1610289734498,1.09854008,1299.2,1298.7,32.39]
[1610289734697,2.56339948,1299.3,1299.1,5.75309]
[1610289735100,2.56339948,1299.3,1299.1,15.75309]
[1610289735298,2.56339948,1299.3,1299.2,10.0]
[1610289735700,1.46468966,1299.3,1299.2,10.0]
[1610289736099,1.83003477,1299.3,1299.2,10.0]
[1610289736701,5.83962477,1299.3,1299.2,10.0]
[1610289737100,6.12967697,1299.3,1299.2,10.0]
[1610289737504,9.3358796,1299.3,1299.2,10.0]
[1610289738905,3.95083958,1299.3,1299.2,10.0]
[1610289739504,5.41624404,1299.3,1299.2,10.0]
[1610289739704,3.58549143,1299.3,1299.2,10.0]
[1610289739908,2.56479605,1299.3,1299.2,10.0]
[1610289740707,1.10040983,1299.4,1299.2,14.00959]
[1610289740909,2.56890523,1299.5,1299.2,14.00959]
[1610289741106,2.56890523,1299.5,1299.3,10.0]
[1610289741507,2.56890523,1299.5,1299.4,10.0]
[1610289741907,2.56890523,1299.5,1299.4,11.5469]
[1610289742107,1.14766549,1299.5,1299.4,1.5469]
[1610289742308,1.14766549,1299.5,1299.4,11.5469]
[1610289742708,1.14766549,1299.5,1299.4,15.55649]
[1610289742709,2.61916628,1299.5,1299.4,15.55649]
[1610289742907,2.61916628,1299.5,1299.4,11.5469]
[1610289743112,3.58182181,1299.5,1299.4,11.5469]
[1610289743311,5.33207833,1299.5,1299.4,11.5469]
[1610289744111,6.70697075,1299.5,1299.4,11.5469]
[1610289744611,8.54364628,1299.5,1299.4,11.5469]
[1610289744814,10.07494628,1299.5,1299.4,11.5469]
[1610289745111,11.90940011,1299.5,1299.4,11.5469]
[1610289746216,13.73579798,1299.5,1299.4,11.5469]
[1610289746415,3.64162102,1299.5,1299.4,11.5469]
[1610289747213,14.02842077,1299.5,1299.4,11.5469]
[1610289747517,2.11032102,1299.5,1299.4,11.5469]
[1610289748116,49.90584056,1299.6,1299.4,11.5469]
[1610289748316,30.0,1299.5,1299.4,11.5469]
[1610289748518,36.09495071,1299.5,1299.4,10.0]
[1610289748917,6.09495071,1299.5,1299.4,10.0]
[1610289749516,2.15603084,1299.5,1299.4,10.0]
[1610289749819,3.67543084,1299.5,1299.4,10.0]
[1610289750417,2.15603084,1299.5,1299.4,10.0]
[1610289751221,15.90409276,1299.5,1299.4,10.0]
[1610289751420,17.44199276,1299.5,1299.4,10.0]
[1610289751624,15.20468756,1299.5,1299.4,10.0]
[1610289752321,27.11779733,1299.5,1299.4,10.0]
[1610289752521,25.57989733,1299.5,1299.4,10.0]
[1610289753524,27.14069733,1299.5,1299.4,10.0]
[1610289754222,15.22758756,1299.5,1299.4,10.0]
[1610289754422,13.66678756,1299.5,1299.4,10.0]
[1610289754623,13.66678756,1299.5,1299.0,4.00959]
[1610289755024,4.58758994,1299.1,1298.8,10.0]
[1610289755224,3.21364202,1299.1,1298.7,1.7561]
[1610289755624,1.83494203,1299.0,1298.9,10.0]
[1610289755823,1.83494203,1299.0,1298.7,1.7561]
[1610289756025,4.04745337,1299.0,1298.7,1.7561]
[1610289756224,4.04745337,1299.0,1298.9,10.0]
[1610289756424,3.68112152,1299.0,1298.9,10.0]
[1610289756624,7.69071152,1299.0,1298.9,14.00959]
[1610289757925,9.23671152,1299.0,1298.9,10.0]
[1610289758126,9.60308511,1299.0,1298.9,10.0]
[1610289758326,8.05708511,1299.0,1298.9,10.0]
[1610289758527,6.22210134,1299.0,1298.9,10.0]
[1610289758725,12.63856151,1299.0,1298.9,10.0]
[1610289759326,14.46476518,1299.0,1298.9,10.0]
[1610289759725,12.63553285,1299.0,1298.9,10.0]
[1610289759924,14.17693285,1299.0,1298.9,10.0]
[1610289760125,6.22210134,1299.0,1298.9,10.0]
[1610289760425,10.80780662,1299.0,1298.9,10.0]
[1610289760827,12.63888703,1299.0,1298.9,10.0]
[1610289761228,7.76320134,1299.0,1298.9,10.0]
[1610289762028,16.01549451,1299.0,1298.9,10.0]
[1610289762830,14.47439451,1299.0,1298.9,10.0]
[1610289763030,12.64375031,1299.0,1298.9,10.0]
[1610289763830,14.18885031,1299.0,1298.9,10.0]
[1610289764029,12.3606135,1299.0,1298.9,10.0]
[1610289764229,7.76720134,1299.0,1298.9,10.0]
[1610289764529,10.98568787,1299.0,1298.9,10.0]
[1610289764730,10.98568787,1299.0,1298.9,14.00959]
[1610289764930,9.60591556,1299.0,1298.9,16.34629]
[1610289765129,8.06081556,1299.0,1298.9,16.34629]
[1610289765930,4.05122556,1299.0,1298.9,16.34629]
[1610289766134,4.72890139,1299.0,1298.9,16.34629]
[1610289766631,1.5516,1299.0,1298.9,16.34629]
[1610289769131,1.70560591,1299.2,1298.9,16.34629]
[1610289769331,1.70560591,1299.2,1299.0,10.0]
[1610289769631,1.70560591,1299.2,1299.1,10.0]
[1610289769932,1.70560591,1299.2,1299.0,10.0]
[1610289770132,1.5567,1299.2,1299.0,10.0]
[1610289770332,3.18024227,1299.3,1299.1,10.0]
[1610289770732,3.18024227,1299.3,1299.2,4.00959]
[1610289770931,3.18024227,1299.3,1299.2,6.43909]
[1610289771132,1.84435429,1299.4,1299.2,16.43909]
[1610289771333,4.14455593,1299.3,1299.2,16.43909]
[1610289771534,4.14455593,1299.3,1299.2,6.43909]
[1610289771932,4.14455593,1299.3,1299.2,16.43909]
[1610289772333,2.30135502,1299.3,1299.2,16.43909]
[1610289772833,4.14359702,1299.3,1299.2,16.43909]
[1610289773939,1.842242,1299.3,1299.2,16.43909]
[1610289774234,4.1680865,1299.3,1299.2,16.43909]
[1610289774534,4.75354191,1299.3,1299.2,16.43909]
[1610289775036,3.85212391,1299.3,1299.2,16.43909]
[1610289775337,7.07773269,1299.3,1299.2,16.43909]
[1610289776037,2.32522391,1299.3,1299.2,16.43909]
[1610289776337,1.84019043,1299.3,1299.2,16.43909]
[1610289777039,3.36479043,1299.3,1299.2,16.43909]
[1610289777240,1.84019043,1299.3,1299.2,16.43909]
[1610289777440,5.54802885,1299.4,1299.2,16.43909]
[1610289777740,2.32279486,1299.3,1299.2,6.43909]
[1610289778040,5.54650359,1299.4,1299.2,6.43909]
[1610289778240,5.54650359,1299.4,1299.2,16.43909]
[1610289778441,3.88078769,1299.4,1299.3,10.0]
[1610289778640,2.32238769,1299.4,1299.3,10.0]
[1610289778840,8.61382872,1299.5,1299.3,10.0]
[1610289779040,4.00959,1299.5,1299.4,10.0]
[1610289779440,4.00959,1299.5,1299.2,2.4295]
[1610289779441,14.31678656,1299.5,1299.3,10.0]
[1610289779641,14.31678656,1299.5,1299.2,10.0137]
[1610289779642,13.8277948,1299.5,1299.4,10.0]
[1610289779940,13.8277948,1299.5,1299.3,10.0]
[1610289780142,16.14918185,1299.5,1299.3,10.0]
[1610289780342,13.8277948,1299.5,1299.4,10.0]
[1610289780541,13.8277948,1299.5,1299.3,10.0]
[1610289780743,16.14940337,1299.5,1299.3,10.0]
[1610289780943,14.61010337,1299.5,1299.3,10.0]
[1610289781144,2.32106068,1299.4,1299.2,10.0137]
[1610289781544,12.2884948,1299.5,1299.3,10.0]
[1610289781748,2.3216944,1299.4,1299.3,10.0]
[1610289782145,2.3216944,1299.4,1299.2,10.0137]
[1610289782346,2.3216944,1299.4,1299.3,10.0]
[1610289782747,12.28947266,1299.5,1299.3,10.0]
[1610289783047,13.84367266,1299.5,1299.3,10.0]
[1610289783248,2.32142863,1299.4,1299.2,10.0137]
[1610289783448,13.84367266,1299.5,1299.3,10.0]
[1610289783948,6.93072886,1299.4,1299.2,10.0137]
[1610289784148,6.93036573,1299.4,1299.3,10.0]
[1610289784349,6.93036573,1299.4,1299.2,10.0137]
[1610289784548,2.32420994,1299.4,1299.2,10.0137]
[1610289784748,4.00959,1299.3,1299.2,10.0137]
[1610289784950,8.61495751,1299.3,1299.2,10.0137]
[1610289785150,14.31787072,1299.3,1299.2,20.0137]
[1610289785351,5.53249,1299.3,1299.2,20.0137]
[1610289785551,14.32419651,1299.3,1299.2,20.0137]
[1610289785752,12.80129651,1299.3,1299.2,20.0137]
[1610289785951,14.64109138,1299.3,1299.2,20.0137]
[1610289786152,16.48288744,1299.3,1299.2,20.0137]
[1610289788056,6.35218292,1299.3,1299.2,20.0137]
[1610289788659,16.48917686,1299.3,1299.2,20.0137]
[1610289788855,16.48917686,1299.3,1299.2,12.4295]
[1610289789055,14.14658394,1299.3,1299.2,12.4295]
[1610289789355,16.4994688,1299.3,1299.2,12.4295]
[1610289789756,14.66143815,1299.3,1299.2,12.4295]
[1610289789959,6.36247486,1299.3,1299.2,12.4295]
[1610289790758,12.82791653,1299.3,1299.2,12.4295]
[1610289792759,6.36247486,1299.3,1299.2,12.4295]
[1610289793458,12.83379558,1299.3,1299.2,12.4295]
[1610289794459,6.36247486,1299.3,1299.2,12.4295]
[1610289794659,12.82812068,1299.3,1299.2,12.4295]
[1610289795059,10.98118922,1299.3,1299.2,12.4295]
[1610289795259,6.97159922,1299.3,1299.2,12.4295]
[1610289795460,5.5882601,1299.3,1299.2,12.4295]
[1610289795659,4.20046808,1299.3,1299.2,42.4295]
[1610289796060,3.18739048,1299.3,1299.2,42.4295]
[1610289796462,3.19011024,1299.5,1299.2,42.4295]
[1610289796662,3.19053382,1299.6,1299.2,42.4295]
[1610289796864,3.19053382,1299.6,1299.4,4.00959]
[1610289797063,3.19053382,1299.6,1299.5,10.0]
[1610289797263,3.19053382,1299.6,1299.5,12.1319]
[1610289797463,3.1941581,1299.8,1299.5,42.1319]
[1610289797862,3.1941581,1299.8,1299.6,10.0]
[1610289798264,3.1941581,1299.8,1299.7,10.0]
[1610289798763,3.1941581,1299.8,1299.7,14.00959]
[1610289799266,3.19388105,1299.9,1299.7,14.00959]
[1610289799468,3.19388105,1299.9,1299.8,10.0]
[1610289799868,3.19388105,1299.9,1299.8,42.5039]
[1610289800067,3.19646144,1300.0,1299.8,42.5039]
[1610289800467,3.19881935,1300.2,1299.9,10.0]
[1610289800667,3.19881935,1300.2,1300.0,30.0]
[1610289800868,3.19980352,1300.3,1300.1,4.00959]
[1610289801068,3.19980352,1300.3,1300.1,34.00959]
[1610289801270,3.20056582,1300.4,1300.1,45.87779]
[1610289801469,3.20056582,1300.4,1300.2,10.0]
[1610289801673,3.20056582,1300.4,1300.3,30.0]
[1610289801872,5.05713957,1300.5,1300.3,30.0]
[1610289802069,5.05713957,1300.5,1300.3,40.0]
[1610289802277,3.20173909,1300.5,1300.4,10.0]
[1610289802871,3.20173909,1300.5,1300.4,6.33019]
[1610289803071,3.20173909,1300.5,1300.4,16.33019]
[1610289803471,3.20348488,1300.6,1300.4,16.33019]
[1610289803670,3.20348488,1300.6,1300.5,10.0]
[1610289803971,5.0634654,1300.7,1300.5,10.0]
[1610289804372,1.85709269,1300.7,1300.6,10.0]
[1610289804571,1.85709269,1300.7,1300.4,6.33019]
[1610289804771,5.068344,1300.7,1300.6,4.00959]
[1610289805174,5.068344,1300.7,1300.6,14.00959]
[1610289805175,3.21125131,1300.7,1300.6,14.00959]
[1610289805372,0.04653987,1300.7,1300.6,14.00959]
[1610289805572,3.26504065,1300.8,1300.6,14.00959]
[1610289805772,2.44472289,1300.7,1300.6,4.00959]
[1610289806073,3.26504065,1300.8,1300.6,4.00959]
[1610289806271,3.26504065,1300.8,1300.6,14.00959]
[1610289806473,1.86417643,1300.7,1300.6,14.00959]
[1610289806674,1.86417643,1300.7,1300.6,4.00959]
[1610289806873,1.86417643,1300.7,1300.6,14.00959]
[1610289807773,1.86417643,1300.7,1300.6,10.0]
[1610289807974,4.65920413,1300.7,1300.6,10.0]
[1610289808173,6.51755007,1300.7,1300.6,10.0]
[1610289808372,29.51755007,1300.7,1300.6,10.0]
[1610289808573,23.0,1300.7,1300.6,10.0]
[1610289808773,27.00959,1300.7,1300.6,14.00959]
[1610289808976,29.82273651,1300.7,1300.6,14.00959]
[1610289809274,36.34128505,1300.7,1300.6,14.00959]
[1610289809675,30.09926017,1300.7,1300.6,14.00959]
[1610289809876,29.8272207,1300.7,1300.6,14.00959]
[1610289810276,33.09237145,1300.7,1300.6,14.00959]
[1610289810575,29.8272207,1300.7,1300.6,14.00959]
[1610289810974,33.09217791,1300.7,1300.6,14.00959]
[1610289811377,33.09217791,1300.7,1300.6,10.0]
[1610289811975,29.8272207,1300.7,1300.6,10.0]
[1610289812277,38.20702482,1300.7,1300.6,10.0]
[1610289812678,29.8272207,1300.7,1300.6,10.0]
[1610289812879,33.8368107,1300.7,1300.6,10.0]
[1610289813378,44.07661092,1300.7,1300.6,10.0]
[1610289814680,33.8368107,1300.7,1300.6,10.0]
[1610289815082,45.91467459,1300.7,1300.6,10.0]
[1610289815780,33.8368107,1300.7,1300.6,10.0]
[1610289816782,45.91190056,1300.7,1300.6,10.0]
[1610289817785,33.8368107,1300.7,1300.6,10.0]
[1610289817987,35.3662107,1300.7,1300.6,10.0]
[1610289818385,45.60371553,1300.7,1300.6,10.0]
[1610289819086,43.75269375,1300.7,1300.6,10.0]
[1610289819486,41.8929856,1300.7,1300.6,10.0]
[1610289819685,38.50180282,1300.7,1300.6,10.0]
[1610289820587,40.05960282,1300.7,1300.6,10.0]
[1610289820785,38.50180282,1300.7,1300.6,10.0]
[1610289820985,33.8368107,1300.7,1300.6,10.0]
[1610289821186,38.50189344,1300.7,1300.6,10.0]
[1610289821888,40.04159344,1300.7,1300.6,10.0]
[1610289822287,33.8368107,1300.7,1300.6,10.0]
[1610289822688,40.35679376,1300.7,1300.6,10.0]
[1610289822889,42.21663546,1300.7,1300.6,10.0]
[1610289823492,44.07539553,1300.7,1300.6,10.0]